bitfinex-derivatives/quotes_SOLF0:USTF0_20250130
["timestamp","ask_amount","ask_price","bid_price","bid_amount"]
[1738242927777,0.02786365,240.01,240.0,15.39985245]
[1738242928182,0.02786365,240.01,240.0,11.23265245]
[1738242928576,0.02786365,240.01,239.97,11.23265245]
[1738242928787,4.19496365,240.01,239.94,15.42948233]
[1738242929087,0.02786365,240.01,239.94,11.26128233]
[1738242929789,0.02786365,240.01,239.97,11.23265245]
[1738242930894,0.02786365,240.01,240.0,11.23265245]
[1738242931391,4.165,240.13,240.07,4.166]
[1738242931591,11.23265245,240.21,240.07,11.23265245]
[1738242931791,27.00016766,240.22,240.1,11.23265245]
[1738242932090,4.1644,240.17,240.1,11.23265245]
[1738242932386,4.0595,240.22,240.1,11.23265245]
[1738242932592,0.02882547,240.16,240.13,11.23265245]
[1738242932989,0.02882547,240.16,240.15,4.1646]
[1738242933195,0.02882547,240.16,240.11,0.02929323]
[1738242933694,4.19332547,240.16,240.11,0.02929323]
[1738242933895,0.02882547,240.16,240.11,0.02929323]
[1738242934597,4.1648,240.14,240.11,0.02929323]
[1738242935295,4.1652,240.12,240.11,0.02929323]
[1738242935890,4.165,240.13,240.11,0.02929323]
[1738242936293,0.02882547,240.16,240.11,0.02929323]
[1738242936498,4.1647,240.15,240.11,0.02929323]
[1738242936698,0.02882547,240.16,240.11,0.02929323]
[1738242938400,0.02882547,240.16,240.12,4.1652]
[1738242938598,0.02882547,240.16,240.13,11.23265245]
[1738242938901,2.7251,240.32,240.21,4.1636]
[1738242939094,2.7251,240.32,240.19,11.23265245]
[1738242939598,2.7251,240.32,240.21,4.1636]
[1738242939599,4.1626,240.27,240.21,4.1636]
[1738242939800,2.7251,240.32,240.19,11.23265245]
[1738242940101,4.1632,240.23,240.22,0.02670804]
[1738242940399,4.1632,240.23,240.13,11.23265245]
[1738242940400,11.23265245,240.25,240.13,11.23265245]
[1738242940598,12.66435245,240.25,240.13,11.23265245]
[1738242941501,0.03119368,240.21,240.17,0.0304133]
[1738242942002,4.1641,240.18,240.17,0.0304133]
[1738242946301,4.1653,240.11,240.07,11.23265245]
[1738242946507,2.6535,240.2,240.07,11.23265245]
[1738242947107,4.1654,240.11,240.07,11.23265245]
[1738242947509,4.193304,240.11,240.07,11.26398828]
[1738242947708,0.027904,240.11,240.07,11.26398828]
[1738242947901,4.1659,240.08,240.07,0.03133583]
[1738242949014,0.027904,240.11,240.07,0.03133583]
[1738242949207,4.1657,240.1,240.07,0.03133583]
[1738242951310,0.027904,240.11,240.07,11.26398828]
[1738242952010,4.1656,240.1,240.07,11.26398828]
[1738242952511,4.1659,240.08,240.07,0.03133583]
[1738242952709,0.027904,240.11,240.07,0.03133583]
[1738242953010,4.1657,240.1,240.07,0.03133583]
[1738242953613,1.4317,240.25,240.09,15.39825245]
[1738242953614,4.1645,240.17,240.09,15.39825245]
[1738242953806,1.4317,240.25,240.15,11.23265245]
[1738242954915,0.02888565,240.22,240.18,0.02942038]
[1738242955612,0.02888565,240.22,240.21,11.23265245]
[1738242956313,0.02888565,240.22,240.18,11.26207283]
[1738242956714,0.02888565,240.22,240.2,4.1637]
[1738242957315,0.02888565,240.22,240.21,11.23265245]
[1738242958219,0.02888565,240.22,240.2,4.1637]
[1738242958813,0.02888565,240.22,240.18,11.26207283]
[1738242959116,0.02888565,240.22,240.18,0.02942038]
[1738242961918,0.02888565,240.22,240.19,4.1639]
[1738242962115,0.02888565,240.22,240.18,11.26207283]
[1738242963120,0.02888565,240.22,240.2,4.1637]
[1738242963918,0.02888565,240.22,240.18,11.26207283]
[1738242964223,0.02888565,240.22,240.18,0.02942038]
[1738242964619,0.02888565,240.22,240.09,12.54925245]
[1738242964922,0.02888565,240.22,240.09,11.23265245]
[1738242965224,0.02888565,240.22,240.12,11.23265245]
[1738242965415,0.02888565,240.22,240.15,11.23265245]
[1738242965717,4.1265,240.24,240.16,0.02944609]
[1738242965919,0.02995684,240.21,240.16,0.02944609]
[1738242967023,0.02995684,240.21,240.18,4.1641]
[1738242967622,0.02995684,240.21,240.18,15.39675245]
[1738242968024,0.02995684,240.21,240.18,11.23265245]
[1738242968615,0.02995684,240.21,240.18,15.39675245]
[1738242969020,0.02995684,240.21,240.18,11.23265245]
[1738242969223,0.02995684,240.21,240.19,4.1639]
[1738242969718,0.02995684,240.21,240.18,11.23265245]
[1738242970025,0.02995684,240.21,240.2,4.1638]
[1738242972022,4.162,240.31,240.18,11.23265245]
[1738242972220,4.162,240.31,240.24,4.163]
[1738242972624,4.1621,240.3,240.23,11.23265245]
[1738242972927,4.1621,240.3,240.23,15.39585245]
[1738242973227,0.02802695,240.29,240.26,4.1627]
[1738242973530,0.02802695,240.29,240.26,11.23265245]
[1738242975226,0.02802695,240.29,240.26,15.39525245]
[1738242975426,0.02802695,240.29,240.26,11.23265245]
[1738242975624,0.02802695,240.29,240.24,0.02744365]
[1738242979733,4.1627,240.26,240.24,0.02744365]
[1738242979937,0.02802695,240.29,240.24,0.02744365]
[1738242980730,0.02802695,240.29,240.26,11.23265245]
[1738242980925,0.02802695,240.29,240.24,0.02744365]
[1738242981426,0.02802695,240.29,240.25,4.1628]
[1738242981924,0.02802695,240.29,240.24,0.02744365]
[1738242982538,4.1624,240.28,240.24,0.02744365]
[1738242983032,0.02802695,240.29,240.24,0.02744365]
[1738242984237,4.1624,240.28,240.24,0.02744365]
[1738242984732,0.02802695,240.29,240.24,0.02744365]
[1738242985839,4.19042695,240.29,240.24,0.02744365]
[1738242986732,0.02802695,240.29,240.24,0.02744365]
[1738242986932,4.1624,240.28,240.24,0.02744365]
[1738242987328,0.02802695,240.29,240.24,0.02744365]
[1738242987541,0.02802695,240.29,240.25,4.1629]
[1738242987942,4.19042695,240.29,240.24,4.19034365]
[1738242988238,0.02802695,240.29,240.24,0.02744365]
[1738242988434,0.02802695,240.29,240.24,11.2600961]
[1738242988634,0.02802695,240.29,240.28,4.1624]
[1738242990640,0.02802695,240.29,240.24,11.2600961]
[1738242991039,0.02802695,240.29,240.24,0.02744365]
[1738242991339,0.02802695,240.29,240.25,4.1627]
[1738242991544,0.02802695,240.29,240.27,11.23265245]
[1738242992235,0.02802695,240.29,240.27,15.39515245]
[1738242992539,1.4512,240.45,240.27,11.23265245]
[1738242992741,4.1604,240.4,240.34,4.1613]
[1738242992937,2.874,240.45,240.34,4.1613]
[1738242993638,0.02844268,240.42,240.37,0.02875932]
[1738242994643,4.1607,240.38,240.37,0.02875932]
[1738242994943,4.1607,240.38,240.37,5.932e-05]
[1738242998943,4.1605,240.39,240.37,5.932e-05]
[1738242999139,0.02844268,240.42,240.37,5.932e-05]
[1738243000139,4.1607,240.38,240.37,5.932e-05]
[1738243004849,4.1605,240.39,240.37,5.932e-05]
[1738243005646,0.02844268,240.42,240.37,5.932e-05]
[1738243005846,4.1607,240.38,240.37,5.932e-05]
[1738243007854,0.02844268,240.42,240.37,5.932e-05]
[1738243008048,4.1605,240.39,240.37,5.932e-05]
[1738243009654,0.02844268,240.42,240.37,5.932e-05]
[1738243009954,4.1603,240.4,240.37,5.932e-05]
[1738243010549,4.1602,240.41,240.37,5.932e-05]
[1738243011149,0.02844268,240.42,240.39,11.23265245]
[1738243012655,0.02844268,240.42,240.39,15.39295245]
[1738243012850,0.02844268,240.42,240.39,11.23265245]
[1738243013451,0.02844268,240.42,240.37,5.932e-05]
[1738243013746,4.1602,240.41,240.37,5.932e-05]
[1738243014051,0.02844268,240.42,240.37,5.932e-05]
[1738243014751,0.02844268,240.42,240.37,11.23271177]
[1738243016057,4.1605,240.4,240.37,11.23271177]
[1738243016659,4.1603,240.41,240.37,11.23271177]
[1738243017158,0.02844268,240.42,240.37,11.23271177]
[1738243017357,4.1604,240.4,240.37,11.23271177]
[1738243018360,4.18854268,240.42,240.37,11.23271177]
[1738243020453,4.1602,240.41,240.37,11.23271177]
[1738243021359,0.02844268,240.42,240.37,5.932e-05]
[1738243025870,4.1607,240.38,240.37,5.932e-05]
[1738243032269,0.02844268,240.42,240.37,5.932e-05]
[1738243032773,4.18844268,240.42,240.37,5.932e-05]
[1738243034274,0.02844268,240.42,240.37,5.932e-05]
[1738243034677,0.02844268,240.42,240.37,4.16075932]
[1738243034876,0.02844268,240.42,240.37,5.932e-05]
[1738243035077,4.1601,240.41,240.37,5.932e-05]
[1738243035277,4.1601,240.41,240.37,4.16085932]
[1738243035476,4.1601,240.41,240.37,5.932e-05]
[1738243036274,4.1603,240.4,240.37,5.932e-05]
[1738243039078,4.18854268,240.42,240.37,5.932e-05]
[1738243039480,0.02844268,240.42,240.37,5.932e-05]
[1738243041075,4.1603,240.41,240.37,5.932e-05]
[1738243041481,0.02844268,240.42,240.37,5.932e-05]
[1738243042581,4.18844268,240.42,240.37,5.932e-05]
[1738243042779,0.02844268,240.42,240.37,5.932e-05]
[1738243043678,0.02844268,240.42,240.38,4.1605]
[1738243044180,4.18854268,240.42,240.37,4.16085932]
[1738243044579,0.02844268,240.42,240.37,5.932e-05]
[1738243044786,0.02844268,240.42,240.39,4.1604]
[1738243047986,0.02844268,240.42,240.4,4.1603]
[1738243048882,0.02844268,240.42,240.38,4.1606]
[1738243049083,0.02844268,240.42,240.37,5.932e-05]
[1738243049785,0.02844268,240.42,240.4,4.1602]
[1738243050286,0.02844268,240.42,240.39,4.1603]
[1738243050586,0.02844268,240.42,240.37,5.932e-05]
[1738243051285,4.18844268,240.42,240.37,4.16085932]
[1738243052584,4.18844268,240.42,240.37,11.33596597]
[1738243053485,4.18844268,240.42,240.39,7.17510665]
[1738243053887,4.18844268,240.42,240.37,11.33596597]
[1738243054787,4.18844268,240.42,240.38,4.1606]
[1738243055087,7.17510665,240.4,240.37,5.932e-05]
[1738243055286,7.17510665,240.38,240.37,5.932e-05]
[1738243055477,11.33580665,240.38,240.37,5.932e-05]
[1738243058691,4.1607,240.38,240.37,5.932e-05]
[1738243061290,6.9105,240.38,240.37,5.932e-05]
[1738243061991,2.7498,240.38,240.17,11.21827108]
[1738243062293,11.21827108,240.32,240.17,11.21827108]
[1738243062895,11.21827108,240.32,240.17,15.38237108]
[1738243063099,4.1634,240.22,240.17,15.38237108]
[1738243063691,4.19514937,240.22,240.18,4.164]
[1738243063894,0.03174937,240.22,240.2,11.21827108]
[1738243064289,0.03174937,240.22,240.17,0.02955494]
[1738243065696,0.03174937,240.22,240.17,4.19375494]
[1738243066096,0.03174937,240.22,240.17,0.02955494]
[1738243066502,0.03174937,240.22,240.18,4.164]
[1738243067698,4.1624,240.29,240.19,11.21827108]
[1738243067897,17.34584123,240.45,240.26,11.21827108]
[1738243068094,17.34584123,240.45,240.34,11.21827108]
[1738243068298,17.34584123,240.45,240.37,4.1608]
[1738243068593,17.34584123,240.45,240.31,11.21827108]
[1738243068997,0.02622787,240.4,240.35,0.03196728]
[1738243070898,0.02622787,240.4,240.38,4.1606]
[1738243071497,11.21827108,240.57,240.37,11.21827108]
[1738243071698,11.21827108,240.57,240.45,4.1593]
[1738243072000,4.1581,240.53,240.45,4.1593]
[1738243072299,4.1581,240.53,240.46,4.1592]
[1738243072699,0.03069035,240.52,240.47,0.02966438]
[1738243074801,0.03069035,240.52,240.47,4.18876438]
[1738243075499,4.18899035,240.52,240.47,0.02966438]
[1738243075798,0.03069035,240.52,240.47,0.02966438]
[1738243076000,4.1589,240.49,240.47,0.02966438]
[1738243078302,11.21827108,240.48,240.47,6.438e-05]
[1738243079403,4.1589,240.49,240.47,6.438e-05]
[1738243080900,0.03069035,240.52,240.47,6.438e-05]
[1738243082602,4.1588,240.49,240.47,6.438e-05]
[1738243082902,11.21827108,240.51,240.47,6.438e-05]
[1738243083596,4.1589,240.48,240.47,6.438e-05]
[1738243085002,0.03069035,240.52,240.47,6.438e-05]
[1738243085404,4.1585,240.51,240.47,6.438e-05]
[1738243085607,0.03069035,240.52,240.47,6.438e-05]
[1738243086005,0.03069035,240.52,240.49,4.1587]
[1738243087306,0.03069035,240.52,240.5,4.1585]
[1738243087505,0.03069035,240.52,240.47,6.438e-05]
[1738243089107,0.03069035,240.52,240.5,4.1585]
[1738243089307,0.03069035,240.52,240.47,6.438e-05]
[1738243089904,4.18909035,240.52,240.47,6.438e-05]
[1738243090108,0.03069035,240.52,240.47,6.438e-05]
[1738243090512,4.1586,240.5,240.47,6.438e-05]
[1738243090909,0.03069035,240.52,240.47,6.438e-05]
[1738243091508,11.24896143,240.52,240.47,6.438e-05]
[1738243091709,4.1589,240.48,240.47,6.438e-05]
[1738243092213,0.03069035,240.52,240.47,6.438e-05]
[1738243092914,4.1586,240.5,240.47,6.438e-05]
[1738243093214,0.03069035,240.52,240.47,4.15916438]
[1738243093515,4.1585,240.51,240.47,4.15916438]
[1738243093710,4.1585,240.51,240.47,6.438e-05]
[1738243093911,4.1586,240.5,240.47,6.438e-05]
[1738243095015,4.1584,240.51,240.47,6.438e-05]
[1738243095213,0.03069035,240.52,240.47,6.438e-05]
[1738243096011,0.03069035,240.52,240.49,15.37687108]
[1738243096219,8.3118,240.66,240.49,15.37687108]
[1738243096220,11.21827108,240.67,240.49,11.21827108]
[1738243096514,4.1565,240.62,240.55,4.1577]
[1738243096722,4.1013,240.7,240.55,4.1577]
[1738243096723,15.31957108,240.7,240.55,11.21827108]
[1738243097217,4.1563,240.63,240.56,4.1575]
[1738243097518,4.1563,240.63,240.6,0.03148558]
[1738243098015,4.1567,240.61,240.6,0.03148558]
[1738243100717,0.03042379,240.65,240.6,0.03148558]
[1738243101420,4.1565,240.63,240.6,0.03148558]
[1738243101617,0.03042379,240.65,240.6,0.03148558]
[1738243102225,4.1567,240.61,240.6,0.03148558]
[1738243103132,0.03042379,240.65,240.6,0.03148558]
[1738243103430,4.1567,240.61,240.6,0.03148558]
[1738243104826,4.1567,240.61,240.6,8.558e-05]
[1738243106825,4.1562,240.64,240.6,8.558e-05]
[1738243107030,0.03042379,240.65,240.6,8.558e-05]
[1738243108038,4.1567,240.61,240.6,8.558e-05]
[1738243108433,0.03042379,240.65,240.61,4.1566]
[1738243109338,0.03042379,240.65,240.62,4.1565]
[1738243109838,0.03042379,240.65,240.61,4.1567]
[1738243110141,0.03042379,240.65,240.6,8.558e-05]
[1738243110341,0.03042379,240.65,240.61,11.21827108]
[1738243111141,0.03042379,240.65,240.64,4.1562]
[1738243111836,0.03042379,240.65,240.62,4.1564]
[1738243112041,0.03042379,240.65,240.64,11.21827108]
[1738243112539,0.03042379,240.65,240.64,15.37447108]
[1738243112937,1.3963,240.76,240.64,11.21827108]
[1738243113145,11.21827108,240.79,240.67,11.21827108]
[1738243113339,1.4491,240.8,240.67,11.21827108]
[1738243114037,5.73182437,240.83,240.7,11.21827108]
[1738243114340,0.0277149,240.76,240.75,4.1543]
[1738243114543,5.73182437,240.83,240.65,7.04221468]
[1738243114844,4.1527,240.85,240.75,4.1543]
[1738243115038,22.9272975,240.89,240.65,7.04221468]
[1738243115236,22.9272975,240.89,240.66,0.83104795]
[1738243115635,22.9272975,240.89,240.85,11.21827108]
[1738243116038,22.9272975,240.89,240.85,15.37067108]
[1738243116237,22.95636474,240.89,240.85,11.24828644]
[1738243118146,0.02906724,240.89,240.85,11.24828644]
[1738243118338,0.02906724,240.89,240.85,0.03001536]
[1738243118744,0.02906724,240.89,240.85,1.536e-05]
[1738243118745,11.21827108,240.88,240.85,1.536e-05]
[1738243118944,4.1522,240.87,240.85,1.536e-05]
[1738243119449,5.563,240.87,240.85,1.536e-05]
[1738243122345,4.1522,240.87,240.85,1.536e-05]
[1738243125349,0.02906724,240.89,240.85,4.15251536]
[1738243125550,0.02906724,240.89,240.85,1.536e-05]
[1738243127049,0.02906724,240.89,240.85,4.15251536]
[1738243128853,0.02906724,240.89,240.87,4.1521]
[1738243129054,0.02906724,240.89,240.85,1.536e-05]
[1738243130052,0.02906724,240.89,240.86,4.1523]
[1738243130757,4.1521,240.88,240.85,1.536e-05]
[1738243131055,0.02906724,240.89,240.85,1.536e-05]
[1738243131652,0.02906724,240.89,240.87,4.1521]
[1738243132052,0.02906724,240.89,240.85,1.536e-05]
[1738243132257,0.02906724,240.89,240.88,4.152]
[1738243133762,17.88204937,241.01,240.85,1.536e-05]
[1738243134059,17.88204937,241.01,240.83,17.88204937]
[1738243134560,4.1515,240.91,240.83,17.88204937]
[1738243135061,0.02616695,240.89,240.88,4.152]
[1738243135262,4.1513,240.93,240.88,4.152]
[1738243135467,0.03066977,240.91,240.88,4.152]
[1738243136162,0.03066977,240.91,240.87,4.1521]
[1738243136762,0.03066977,240.91,240.88,4.152]
[1738243136959,0.03066977,240.91,240.86,0.02873478]
[1738243139159,4.18226977,240.91,240.86,0.02873478]
[1738243139465,0.03066977,240.91,240.86,0.02873478]
[1738243140663,0.03066977,240.91,240.86,4.18103478]
[1738243140860,4.1517,240.9,240.86,0.02873478]
[1738243141367,4.1517,240.9,240.86,4.18103478]
[1738243141865,4.1522,240.87,240.86,0.02873478]
[1738243142065,0.03066977,240.91,240.86,0.02873478]
[1738243143468,4.1522,240.87,240.86,0.02873478]
[1738243144165,4.1522,240.87,240.86,3.478e-05]
[1738243145373,4.154,240.77,240.75,0.18581]
[1738243145668,1.3421,240.86,240.75,11.35228307]
[1738243145864,4.1526,240.85,240.8,4.1532]
[1738243146168,1.3973,240.92,240.78,11.16647307]
[1738243146563,0.02617342,240.87,240.83,0.02874879]
[1738243146864,0.02617342,240.87,240.84,11.16647307]
[1738243147166,0.02617342,240.87,240.85,4.1525]
[1738243147563,0.02617342,240.87,240.84,11.16647307]
[1738243148068,0.02617342,240.87,240.85,4.1525]
[1738243149161,0.02617342,240.87,240.86,4.1524]
[1738243149766,11.16647307,240.99,240.86,4.1524]
[1738243149978,2.7137,240.97,240.84,4.1525]
[1738243150366,4.1517,240.9,240.81,11.16647307]
[1738243150570,2.7137,240.97,240.86,4.1524]
[1738243150764,2.7137,240.97,240.84,11.16647307]
[1738243150965,0.02849665,240.94,240.89,0.02626234]
[1738243151171,11.16647307,240.9,240.76,1.4208]
[1738243151367,4.1528,240.84,240.75,0.18581]
[1738243151670,11.16647307,240.87,240.77,4.1539]
[1738243151971,11.16647307,240.84,240.71,1.3203]
[1738243152368,0.02971019,240.8,240.75,0.02866585]
[1738243152566,4.1538,240.78,240.75,0.02866585]
[1738243152969,0.02971019,240.8,240.77,4.1539]
[1738243153166,0.02971019,240.8,240.75,11.19513892]
[1738243153375,0.02971019,240.8,240.75,0.02866585]
[1738243153769,4.154,240.77,240.75,0.02866585]
[1738243155768,4.1541,240.76,240.75,0.02866585]
[1738243156372,0.02971019,240.8,240.75,0.02866585]
[1738243156573,0.02971019,240.8,240.75,11.19513892]
[1738243156773,0.02971019,240.8,240.75,15.34943892]
[1738243157873,4.1538,240.78,240.75,0.02866585]
[1738243158470,0.02971019,240.8,240.75,0.02866585]
[1738243159273,0.02971019,240.8,240.76,4.1541]
[1738243159573,0.02971019,240.8,240.75,0.02866585]
[1738243159769,4.18331019,240.8,240.76,4.1541]
[1738243159971,0.02971019,240.8,240.75,0.02866585]
[1738243161467,4.1541,240.76,240.75,0.02866585]
[1738243162674,0.02971019,240.8,240.75,0.02866585]
[1738243163378,4.1541,240.77,240.75,0.02866585]
[1738243163580,0.02971019,240.8,240.75,0.02866585]
[1738243163878,4.1537,240.79,240.75,0.02866585]
[1738243164079,0.02971019,240.8,240.75,0.02866585]
[1738243164579,4.1541,240.76,240.75,6.585e-05]
[1738243167881,5.6021,240.79,240.75,6.585e-05]
[1738243168284,1.4484,240.79,240.75,6.585e-05]
[1738243168582,4.1538,240.78,240.75,6.585e-05]
[1738243169076,4.154,240.77,240.75,6.585e-05]
[1738243169471,1.4484,240.79,240.75,6.585e-05]
[1738243169675,0.02971019,240.8,240.75,6.585e-05]
[1738243169872,4.1539,240.77,240.75,6.585e-05]
[1738243173582,4.1541,240.76,240.75,6.585e-05]
[1738243175378,0.02971019,240.8,240.75,6.585e-05]
[1738243175583,4.1539,240.78,240.75,6.585e-05]
[1738243175976,4.1539,240.78,240.65,7.22291468]
[1738243175977,4.1558,240.66,240.65,0.1807]
[1738243176177,17.88296789,240.76,240.43,171.65220541]
[1738243176178,17.88296789,240.76,240.55,1.3607]
[1738243176381,17.88296789,240.72,240.55,1.3607]
[1738243176587,17.88296789,240.72,240.52,20.68786789]
[1738243176588,4.1574,240.58,240.52,1.4073]
[1738243177085,0.02778659,240.57,240.53,0.0290517]
[1738243178685,17.88296789,240.76,240.56,17.88296789]
[1738243178981,2.6845,240.74,240.6,17.88296789]
[1738243179381,4.1552,240.7,240.63,4.1563]
[1738243179579,2.6845,240.74,240.63,4.1563]
[1738243179988,4.1551,240.7,240.66,0.03142111]
[1738243180585,0.02809329,240.71,240.66,0.03142111]
[1738243182380,4.18309329,240.71,240.66,0.03142111]
[1738243183487,0.02809329,240.71,240.66,0.03142111]
[1738243185694,4.1556,240.67,240.66,0.03142111]
[1738243185891,1.34509329,240.71,240.52,17.88296789]
[1738243186090,1.317,240.71,240.52,17.88296789]
[1738243186688,4.1559,240.66,240.61,4.1565]
[1738243186893,1.317,240.71,240.52,17.88296789]
[1738243187093,0.03082143,240.66,240.61,0.02906217]
[1738243188794,0.03082143,240.66,240.63,4.1562]
[1738243189190,0.03082143,240.66,240.61,0.02906217]
[1738243189695,4.156,240.65,240.61,0.02906217]
[1738243190097,4.156,240.65,240.61,4.18576217]
[1738243190497,0.03082143,240.66,240.61,0.02906217]
[1738243190692,0.03082143,240.66,240.64,4.1561]
[1738243190895,0.03082143,240.66,240.61,0.02906217]
[1738243191594,0.03082143,240.66,240.63,4.1563]
[1738243192395,0.03082143,240.66,240.62,4.1565]
[1738243192596,0.03082143,240.66,240.61,0.02906217]
[1738243196195,4.1564,240.63,240.61,0.02906217]
[1738243196389,0.03082143,240.66,240.61,0.02906217]
[1738243196789,4.1565,240.62,240.61,0.02906217]
[1738243197995,4.1563,240.64,240.61,0.02906217]
[1738243199302,4.1565,240.62,240.61,0.02906217]
[1738243200503,4.1563,240.64,240.61,0.02906217]
[1738243200699,0.03082143,240.66,240.61,0.02906217]
[1738243201601,4.1565,240.62,240.61,0.02906217]
[1738243202303,4.1562,240.64,240.61,0.02906217]
[1738243206196,4.1565,240.62,240.61,0.02906217]
[1738243208494,4.1578,240.55,240.5,1.4527]
[1738243208897,11.18851682,240.61,240.45,11.18851682]
[1738243209103,11.18851682,240.54,240.39,11.18851682]
[1738243209903,0.02670656,240.49,240.44,0.03097927]
[1738243210101,4.18550656,240.49,240.44,0.03097927]
[1738243210498,4.18550656,240.49,240.44,4.19057927]
[1738243210698,4.1589,240.48,240.44,0.03097927]
[1738243210898,0.02670656,240.49,240.44,0.03097927]
[1738243211204,4.1592,240.47,240.44,0.03097927]
[1738243212202,4.1593,240.46,240.44,0.03097927]
[1738243212508,0.02670656,240.49,240.44,0.03097927]
[1738243213309,0.02670656,240.49,240.45,4.1594]
[1738243213808,0.02670656,240.49,240.44,0.03097927]
[1738243213809,4.1591,240.47,240.44,0.03097927]
[1738243215000,4.1589,240.48,240.44,0.03097927]
[1738243215306,0.02670656,240.49,240.44,0.03097927]
[1738243215307,0.02670656,240.49,240.46,4.1593]
[1738243215507,0.02670656,240.49,240.44,0.03097927]
[1738243216105,0.02670656,240.49,240.44,4.19047927]
[1738243216308,0.02670656,240.49,240.44,0.03097927]
[1738243216906,4.1594,240.45,240.44,0.03097927]
[1738243217711,4.1607,240.38,240.33,12.50111682]
[1738243217911,11.18851682,240.45,240.33,1.3126]
[1738243218511,11.18851682,240.45,240.33,5.4741]
[1738243218811,11.18851682,240.42,240.27,11.18851682]
[1738243219018,4.1607,240.38,240.37,0.03127296]
[1738243219316,0.02993028,240.41,240.35,0.03098452]
[1738243219517,4.1603,240.41,240.3,11.18851682]
[1738243219718,0.03184618,240.4,240.3,11.18851682]
[1738243219905,0.03184618,240.4,240.36,0.02806652]
[1738243222516,0.03184618,240.4,240.36,11.21658334]
[1738243223516,0.03184618,240.4,240.38,4.1605]
[1738243224016,0.03184618,240.4,240.36,0.02806652]
[1738243224814,4.19234618,240.4,240.36,0.02806652]
[1738243225313,4.1605,240.39,240.36,0.02806652]
[1738243226220,0.03184618,240.4,240.38,4.1606]
[1738243227920,0.03184618,240.4,240.36,4.18886652]
[1738243228419,0.03184618,240.4,240.36,0.02806652]
[1738243228620,4.19224618,240.4,240.36,0.02806652]
[1738243229623,4.19224618,240.4,240.37,4.1608]
[1738243230915,0.03184618,240.4,240.37,4.1608]
[1738243231327,0.03184618,240.4,240.39,4.1605]
[1738243231721,0.03184618,240.4,240.36,0.02806652]
[1738243232021,0.03184618,240.4,240.38,4.1606]
[1738243232227,0.03184618,240.4,240.36,0.02806652]
[1738243232419,4.1608,240.37,240.36,0.02806652]
[1738243234023,0.03184618,240.4,240.36,0.02806652]
[1738243235525,0.03184618,240.4,240.39,4.1605]
[1738243239127,0.03184618,240.4,240.36,0.02806652]
[1738243239631,4.1605,240.39,240.36,0.02806652]
[1738243239835,0.03184618,240.4,240.36,0.02806652]
[1738243240024,4.1608,240.37,240.36,0.02806652]
[1738243244727,0.03184618,240.4,240.36,0.02806652]
[1738243244931,4.1607,240.38,240.36,0.02806652]
[1738243245835,4.1608,240.37,240.36,0.02806652]
[1738243250538,0.03184618,240.4,240.36,4.18896652]
[1738243250740,0.03184618,240.4,240.36,0.02806652]
[1738243251643,4.1605,240.39,240.36,0.02806652]
[1738243251837,0.03184618,240.4,240.36,0.02806652]
[1738243252341,4.1608,240.38,240.36,0.02806652]
[1738243252943,4.1608,240.37,240.36,0.02806652]
[1738243253746,4.1607,240.38,240.36,0.02806652]
[1738243254344,0.03184618,240.4,240.36,0.02806652]
[1738243254545,4.1608,240.37,240.36,0.02806652]
[1738243255344,1.4373,240.52,240.36,22.40510016]
[1738243255543,1.4373,240.52,240.42,11.18851682]
[1738243255742,4.1589,240.49,240.43,4.1598]
[1738243255948,1.4373,240.52,240.37,2.79]
[1738243256443,0.02633197,240.47,240.42,0.02902476]
[1738243257146,4.1594,240.46,240.42,0.02902476]
[1738243258742,0.02633197,240.47,240.42,0.02902476]
[1738243260038,4.1598,240.44,240.42,0.02902476]
[1738243260344,0.02633197,240.47,240.42,0.02902476]
[1738243262146,4.1598,240.43,240.42,0.02902476]
[1738243263652,4.1609,240.37,240.3,11.18851682]
[1738243264051,4.1609,240.37,240.32,4.1617]
[1738243264647,4.19150748,240.37,240.32,0.02698849]
[1738243264842,4.161,240.36,240.32,0.02698849]
[1738243265044,0.03060748,240.37,240.32,0.02698849]
[1738243265346,4.161,240.36,240.32,0.02698849]
[1738243266250,0.03060748,240.37,240.32,0.02698849]
[1738243266448,4.1615,240.33,240.32,0.02698849]
[1738243271260,0.03060748,240.37,240.32,0.02698849]
[1738243272649,0.03060748,240.37,240.34,4.1612]
[1738243273658,0.03060748,240.37,240.34,11.18851682]
[1738243273856,1.3455,240.46,240.34,11.18851682]
[1738243274052,1.3455,240.46,240.38,11.18851682]
[1738243274853,4.1596,240.45,240.38,11.18851682]
[1738243275059,0.0307322,240.44,240.4,0.02730612]
[1738243275863,0.0307322,240.44,240.41,11.18851682]
[1738243276065,0.0307322,240.44,240.43,4.1598]
[1738243277054,0.0307322,240.44,240.41,15.34861682]
[1738243277865,0.0307322,240.44,240.41,11.18851682]
[1738243280060,0.0307322,240.44,240.42,4.16]
[1738243280265,11.18851682,240.56,240.41,11.18851682]
[1738243280461,11.18851682,240.56,240.43,4.1596]